fUST/lending_fUST_20260205
["ID","MTS","AMOUNT","RATE_DAILY","PERIOD"]
[404568600,1770303039691,-501.3003251,0.00014247,2]
[404568601,1770303039700,-1000.0,0.00014247,2]
[404568602,1770303039710,-1000.45630471,0.00014247,2]
[404568603,1770303039719,-300.0903073,0.00014247,2]
[404568604,1770303039729,-536.69780885,0.00014247,2]
[404568605,1770303039739,-502.78626778,0.00014247,2]
[404568606,1770303039748,-1000.0,0.00014247,2]
[404568607,1770303039758,-1000.0,0.00014247,2]
[404568608,1770303039767,-1000.0,0.00014247,2]
[404568609,1770303039776,-503.29938304,0.00014247,2]
[404568610,1770303039786,-1001.07051364,0.00014247,2]
[404568611,1770303039795,-1000.0,0.00014247,2]
[404568612,1770303039805,-500.0,0.00014247,2]
[404568613,1770303039814,-1000.0,0.00014247,2]
[404568614,1770303039823,-446.75001853,0.00014368,2]
[404568615,1770303039833,-1087.64930692,0.00014368,2]
[404568616,1770303039843,-1500.0,0.00014368,2]
[404568617,1770303039852,-1500.0,0.00014368,2]
[404568618,1770303039862,-1383.90445314,0.00014368,2]
[404568619,1770303039872,-420.0,0.00014551,2]
[404568620,1770303039881,-506.2064172,0.00014795,2]
[404568621,1770303039894,-214.61377282,0.00014795,2]
[404568622,1770303039903,-1500.0,0.00014795,2]
[404568623,1770303039913,-502.49662358,0.00014795,2]
[404568624,1770303039922,-702.32715655,0.00014795,2]
[404568625,1770303039932,-1500.0,0.00014795,2]
[404568626,1770303039941,-324.9236754,0.00014795,2]
[404568627,1770303039950,-2000.0,0.00014916,2]
[404568628,1770303039960,-2000.0,0.00014916,2]
[404568629,1770303039969,-1792.52981682,0.00015342,2]
[404568630,1770303039979,-2000.0,0.00015342,2]
[404568631,1770303039989,-418.55711365,0.00015464,2]
[404568632,1770303039998,-2500.0,0.00015464,2]
[404568633,1770303040007,-2500.0,0.0001589,2]
[404568634,1770303040016,-587.0,0.00015953,2]
[404568635,1770303040025,-3000.0,0.00016012,2]
[404568636,1770303040034,-3000.0,0.00016438,2]
[404568637,1770303040044,-1063.58171927,0.0001656,2]
[404568638,1770303040053,-3500.0,0.00016986,2]
[404568639,1770303040063,-293.0,0.0001749,2]
[404568640,1770303040072,-3002.23026513,0.00017534,2]
[404568642,1770303040081,-2439.0594636,0.00023286,2]
[404568643,1770303040091,-166.11,0.000233,7]
[404568644,1770303040101,-4923.352008,0.000249,2]
[404568645,1770303040110,-508.3,0.00028588,2]
[404568646,1770303040120,-172.67732417,0.00028669,2]
[404568647,1770303040129,-211.34959391,0.00029685,2]
[404568648,1770303040139,-169.07967513,0.00029833,10]
[404568651,1770303040149,-182.46554271,0.00030037,2]
[404568653,1770303040159,-3268.94,0.00030117,10]
[404568655,1770303040168,-2724.12,0.00030117,10]
[404568657,1770303040177,-2270.1,0.00030117,10]
[404568658,1770303040187,-39386.816064,0.00030127,2]
[404568659,1770303040196,-4383.9,0.00030127,3]
[404568660,1770303040205,-2191.95,0.00030127,3]
[404568661,1770303040214,-1095.98,0.00030127,3]
[404568662,1770303040224,-547.99,0.00030127,3]
[404568663,1770303040233,-273.99,0.00030127,3]
[404568664,1770303040243,-822.02,0.00030127,3]
[404568665,1770303040252,-190000.0,0.00030137,30]
[404568666,1770303040261,-191174.0,0.00030137,90]
[404568667,1770303040271,-151.0,0.00030137,31]
[404568668,1770303040280,-151.0,0.00030137,31]
[404568669,1770303040290,-151.0,0.00030137,31]
[404568670,1770303040300,-151.0,0.00030137,31]
[404568671,1770303040310,-9846.704016,0.0003019,2]
[404568672,1770303040320,-258.45,0.000302,14]
[404568673,1770303040329,-1246.59,0.000302,2]
[404568674,1770303040340,-5594.9022089,0.00030273,2]
[404568675,1770303040350,-151.0,0.00030273,31]
[404568676,1770303040359,-165.070345,0.00030273,31]
[404568677,1770303040369,-200.0,0.00030747,2]
[404568678,1770303040379,-42298.45779058,0.0003099,2]
[404568679,1770303040393,-182.46554269,0.00031368,2]
[404568680,1770303040403,-741.26793723,0.00031497,3]
[404568681,1770303040413,-8767.8,0.00031497,3]
[404568682,1770303040422,-4383.9,0.00031497,3]
[404568683,1770303040432,-2191.96,0.00031497,3]
[404568684,1770303040442,-1095.98,0.00031497,3]
[404568685,1770303040451,-547.98,0.00031497,3]
[404568686,1770303040460,-4923.352008,0.00031615,2]
[404568687,1770303040470,-18020.7586158,0.00031625,2]
[404568688,1770303040480,-169.07967513,0.00031981,10]
[404568689,1770303040489,-200.0,0.00032278,2]
[404568690,1770303040499,-1711.04178378,0.00032335,2]
[404568691,1770303040508,-741.26793723,0.00032479,2]
[404568692,1770303040518,-1041.66666667,0.00032479,2]
[404568693,1770303040528,-182.46554269,0.00032699,2]
[404568694,1770303040541,-201.148,0.0003273,33]
[404568695,1770303040550,-200.0,0.00033808,2]
[404568696,1770303040560,-182.46554269,0.0003403,2]
[404568697,1770303040570,-169.07967513,0.0003413,21]
[404568698,1770303040580,-500.0,0.00034273,10]
[404568699,1770303040589,-200.0,0.00035338,2]
[404568700,1770303040599,-1711.04178378,0.00036082,2]
[404568701,1770303040610,-176.4250532,0.00036429,10]
[404568702,1770303040619,-200.0,0.00036869,2]
[404568703,1770303040629,-1972.667418,0.00036895,60]
[404568704,1770303040643,-471.53568,0.00037035,60]
[404568705,1770303040652,-174.26204169,0.00037189,60]
[404568706,1770303040662,-1436.03367,0.00037197,60]
[404568707,1770303040672,-314.49620248,0.00037307,2]
[404568708,1770303040681,-174.3,0.00037375,60]
[404568709,1770303040691,-4923.352008,0.0003739,3]
[404568710,1770303040700,-1246.59,0.000374,14]
[404568711,1770303040710,-151.0,0.000374,31]
[404568712,1770303040720,-174.29,0.00037475,60]
[404568713,1770303040729,-174.30795831,0.00037475,60]
[404568714,1770303040739,-1916.328218,0.00037537,60]
[404568715,1770303040749,-953.482395,0.00037574,60]
[404568716,1770303040759,-174.33795831,0.00037575,60]
[404568717,1770303040768,-258.45,0.000378,30]
[404568718,1770303040777,-2327.932389,0.0003797,2]
[404568719,1770303040787,-5576.9246445,0.0003797,2]
[404568720,1770303040797,-4923.352008,0.00038346,3]
[404568721,1770303040806,-354.04,0.00038356,120]
[404568722,1770303040816,-151.0,0.00038356,120]
[404568723,1770303040825,-151.0,0.00038356,120]
[404568724,1770303040835,-151.0,0.00038356,120]
[404568725,1770303040844,-151.0,0.00038356,120]
[404568727,1770303040854,-151.0,0.00038356,120]
[404568728,1770303040863,-223.928741,0.00038356,120]
[404568730,1770303040872,-151.0,0.00038356,120]
[404568732,1770303040881,-151.0,0.00038356,120]
[404568733,1770303040893,-151.0,0.00038356,120]
[404568734,1770303040902,-151.0,0.00038356,120]
[404568735,1770303040911,-162.115539,0.00038356,120]
[404568736,1770303040921,-594.322462,0.00038356,120]
[404568738,1770303040930,-594.322462,0.00038356,120]
[404568740,1770303040939,-594.322462,0.00038356,120]
[404568742,1770303040948,-594.322462,0.00038356,120]
[404568744,1770303040958,-594.322462,0.00038356,120]
[404568746,1770303040967,-594.322462,0.00038356,120]
[404568748,1770303040976,-594.322462,0.00038356,120]
[404568749,1770303040985,-594.322462,0.00038356,120]
[404568752,1770303040995,-594.322462,0.00038356,120]
[404568753,1770303041004,-594.322462,0.00038356,120]
[404568755,1770303041014,-594.322462,0.00038356,120]
[404568757,1770303041023,-594.322462,0.00038356,120]
[404568759,1770303041033,-594.322462,0.00038356,120]
[404568762,1770303041042,-594.322462,0.00038356,120]
[404568763,1770303041051,-594.322462,0.00038356,120]
[404568766,1770303041061,-594.322462,0.00038356,120]
[404568767,1770303041070,-151.0,0.00038356,120]
[404568770,1770303041079,-151.0,0.00038356,120]
[404568772,1770303041088,-151.0,0.00038356,120]
[404568774,1770303041098,-151.0,0.00038356,120]
[404568775,1770303041107,-151.0,0.00038356,120]
[404568777,1770303041116,-151.0,0.00038356,120]
[404568779,1770303041126,-151.0,0.00038356,120]
[404568782,1770303041136,-151.0,0.00038356,120]
[404568784,1770303041148,-151.0,0.00038356,120]
[404568785,1770303041158,-151.0,0.00038356,120]
[404568788,1770303041167,-151.0,0.00038356,120]
[404568790,1770303041177,-199.581615,0.00038356,120]
[404568792,1770303041187,-151.0,0.00038356,120]
[404568793,1770303041197,-151.0,0.00038356,120]
[404568796,1770303041206,-169.056668,0.00038356,120]
[404568798,1770303041216,-800.0,0.00038356,30]
[404568800,1770303041225,-200.0,0.00038399,2]
[404568801,1770303041235,-800.0,0.0003863,30]
[404568803,1770303041246,-205.07228056,0.00038829,11]
[404568805,1770303041255,-205.07228051,0.00038829,11]
[404568807,1770303041264,-28634.1916463,0.00038837,2]
[404568809,1770303041274,-1014.25234,0.00038837,2]
[404568811,1770303041283,-151.0,0.00038837,120]
[404568813,1770303041293,-151.0,0.00038837,120]
[404568815,1770303041304,-274.9757,0.00038837,120]
[404568817,1770303041313,-800.0,0.00038904,30]
[404568819,1770303041323,-4923.352008,0.00038964,3]
[404568821,1770303041332,-151.0,0.00038974,120]
[404568823,1770303041342,-151.0,0.00038974,120]
[404568825,1770303041351,-151.0,0.00038974,120]
[404568827,1770303041360,-594.322462,0.00038974,120]
[404568829,1770303041370,-594.322462,0.00038974,120]
[404568831,1770303041380,-594.322462,0.00038974,120]
[404568833,1770303041394,-594.322459,0.00038974,120]
[404568835,1770303041404,-151.0,0.00038974,120]
[404568837,1770303041414,-151.0,0.00038974,120]
[404568840,1770303041423,-151.0,0.00038974,120]
[404568841,1770303041433,-741.26793723,0.00038974,3]
[404568843,1770303041443,-24616.76004,0.00038974,3]
[404568844,1770303041452,-69.75292089,0.00038984,2]
[404568855,1770303041556,-2470.05,0.00038984,2]
[404568858,1770303041567,-706.64214546,0.00038984,2]
[404568864,1770303041622,-584.994231,0.00031127,2]
[404568866,1770303041631,-7.5971107,0.00038356,120]
[404568905,1770303042001,-0.00187044,0.00038356,120]
[404569159,1770303046833,-1052.9896158,0.00033114,2]
[404569160,1770303046842,-6520.64298326,0.000339,14]
[404569161,1770303046856,-419.94000001,0.000339,14]
[404569162,1770303046870,-453.7580422,0.000339,14]
[404569167,1770303047091,-14287.40148753,0.000339,14]
[404569168,1770303047105,-2424.08427743,0.000339,14]
[404569183,1770303340299,10000.0,0.00030137,120]
[404569186,1770303352473,-500000.0,0.00039896,30]
[404569187,1770303361346,10000.0,0.00030137,120]
[404569189,1770303368685,-5000000.0,0.00039896,30]
[404569190,1770303372292,-5000000.0,0.00039896,30]
[404569191,1770303382682,10000.0,0.00030137,120]
[404569208,1770303429472,-9000000.0,0.00039896,30]
[404569210,1770303432621,-9000000.0,0.00039896,30]
[404569211,1770303435379,-9000000.0,0.00039896,30]
[404569212,1770303438071,-9000000.0,0.00039896,30]
[404569213,1770303440728,-9000000.0,0.00039896,30]
[404569214,1770303457332,-2076482.08815388,0.00039896,30]
[404569215,1770303457398,-16191.403043,0.00039896,30]
[404569216,1770303457465,-194.46611919,0.00039896,120]
[404569217,1770303457530,-194.46611919,0.00039896,120]
[404569218,1770303457592,-194.46611919,0.00039896,120]
[404569219,1770303457656,-194.46611919,0.00039896,120]
[404569220,1770303457721,-194.46611919,0.00039896,120]
[404569221,1770303457781,-194.46611919,0.00039896,120]
[404569222,1770303457839,-194.46611919,0.00039896,120]
[404569223,1770303457896,-194.46611915,0.00039896,120]
[404569224,1770303457959,-2768677.48869772,0.00039896,30]
[404569225,1770303458027,-111322.18625989,0.00039896,30]
[404569226,1770303458105,-76684.93327129,0.00039896,30]
[404569227,1770303458173,-51123.41896077,0.00039896,30]
[404569228,1770303458250,-22856.09344095,0.00039896,30]
[404569229,1770303458313,-31730.1804001,0.00039896,30]
[404569230,1770303458547,-492736.20865162,0.00039896,30]
[404569231,1770303458622,-9352.85672895,0.00039896,31]
[404569232,1770303458696,-13416.62450687,0.00039896,30]
[404569233,1770303458773,-416.53556666,0.00039896,120]
[404569234,1770303458839,-239317.24849474,0.00039896,120]
[404569235,1770303458912,-396.86278333,0.00039896,120]
[404569236,1770303458991,-6982.03063458,0.00039896,120]
[404569237,1770303459058,-34627.5,0.00039896,30]
[404569238,1770303459140,-20027.942752,0.00039896,30]
[404569239,1770303459595,863.0,0.00039896,30]
[404569256,1770303561001,55167.0,0.0001,2]
[404569258,1770303602980,153.51,0.00013,2]
[404569259,1770303643889,-153.51,0.000131,2]
[404569260,1770303643917,-153.51,0.000131,2]
[404569261,1770303643947,-153.51,0.000132,2]
[404569262,1770303643974,-153.51,0.000132,2]
[404569263,1770303644001,-153.51,0.000132,2]
[404569264,1770303644021,-153.51,0.00013272,2]
[404569265,1770303644031,-153.51,0.00013272,2]
[404569266,1770303644047,-153.51,0.00013272,2]
[404569267,1770303644058,-153.51,0.00013272,2]
[404569268,1770303644070,-153.51,0.00013272,2]
[404569269,1770303644082,-248.15185446,0.00013272,2]
[404569276,1770303704062,-151.0,0.00013272,2]
[404569285,1770303825294,5000.0,0.00013012,2]
[404569300,1770303833051,4625.25502093,0.00013012,2]
[404569307,1770303841588,5000.0,0.00013012,2]
[404569309,1770303849952,1300.30572181,0.00013012,2]
[404569313,1770303865603,5000.0,0.00013012,2]
[404569317,1770303887652,5000.0,0.00013012,2]
[404569323,1770303909975,5000.0,0.00013012,2]
[404569328,1770303932735,5000.0,0.00013012,2]
[404569329,1770303956576,5000.0,0.00013012,2]
[404569332,1770303978782,5000.0,0.00013012,2]
[404569336,1770304001629,5000.0,0.00013012,2]
[404569411,1770304023706,5000.0,0.00013012,2]
[404569419,1770304046266,5000.0,0.00013012,2]
[404569442,1770304060551,-194.73,0.000132,2]
[404569454,1770304068804,5000.0,0.00013012,2]
[404569455,1770304091110,5000.0,0.00013012,2]
[404569457,1770304113135,5000.0,0.00013012,2]
[404569459,1770304135188,5000.0,0.00013012,2]
[404569466,1770304157788,5000.0,0.00013012,2]
[404569467,1770304179800,377.01567142,0.00013012,2]
[404569489,1770304232472,-300.0,0.00013272,2]
[404569490,1770304232482,-300.0,0.00013272,2]
[404569491,1770304232492,-300.0,0.00013272,2]
[404569492,1770304232503,-1200.0,0.00013272,2]
[404569493,1770304232512,-150.0,0.00013272,2]
[404569494,1770304232522,-509.81532837,0.00013273,2]
[404569495,1770304232532,-500.0,0.00013273,2]
[404569496,1770304232543,-502.97656979,0.00013273,2]
[404569497,1770304232558,-501.149941,0.00013273,2]
[404569498,1770304232568,-455.60127165,0.00013273,2]
[404569499,1770304232578,-611.27497826,0.00013273,2]
[404569500,1770304232588,-500.47484303,0.00013273,2]
[404569501,1770304232598,-339.92501183,0.00013273,2]
[404569502,1770304232608,-500.0,0.00013273,2]
[404569503,1770304232618,-544.17933878,0.00013273,2]
[404569504,1770304232629,-500.0,0.00013273,2]
[404569505,1770304232638,-586.31061721,0.00013273,2]
[404569506,1770304232647,-500.0,0.00013273,2]
[404569507,1770304232656,-500.0,0.00013273,2]
[404569508,1770304232665,-153.51,0.000133,2]
[404569509,1770304232675,-153.51,0.000133,2]
[404569510,1770304232684,-153.51,0.000134,2]
[404569511,1770304232693,-153.51,0.000134,2]
[404569512,1770304232702,-391.20210008,0.00013497,2]
[404569513,1770304232817,-990.71723655,0.00013497,2]
[404569563,1770304238798,-2036.1513836,0.00013497,2]
[404569565,1770304238817,-153.51,0.000135,2]
[404569567,1770304238829,-153.51,0.000135,2]
[404569596,1770304239022,-153.51,0.000136,2]
[404569598,1770304239034,-153.51,0.000136,2]
[404569600,1770304239044,-500.0,0.00013698,2]
[404569602,1770304239058,-500.35372988,0.00013699,2]
[404569605,1770304239068,-153.51,0.000137,2]
[404569607,1770304239079,-153.51,0.000137,2]
[404569608,1770304239089,-153.51,0.000138,2]
[404569611,1770304239099,-153.51,0.000138,2]
[404569613,1770304239110,-153.51,0.000138,2]
[404569615,1770304239121,-500.85521788,0.00013821,2]
[404569617,1770304239131,-500.0,0.00013821,2]
[404569619,1770304239142,-153.51,0.000139,2]
[404569621,1770304239152,-153.51,0.000139,2]
[404569623,1770304239161,-153.51,0.00014,2]
[404569625,1770304239171,-153.51,0.00014,2]
[404569627,1770304239181,-153.51,0.000141,2]
[404569629,1770304239191,-153.51,0.000141,2]
[404569631,1770304239200,-153.51,0.000142,2]
[404569633,1770304239210,-153.51,0.000142,2]
[404569635,1770304239219,-153.51,0.000143,2]
[404569637,1770304239229,-153.51,0.000143,2]
[404569639,1770304239241,-420.0,0.00014551,2]
[404569641,1770304239259,-1680.0,0.00014599,2]
[404569643,1770304239274,-500.0,0.00015272,2]
[404569645,1770304239284,-177.0,0.00015272,2]
[404569647,1770304239294,-453.0,0.00015953,2]
[404569649,1770304239309,-520.16766126,0.0001605,2]
[404569651,1770304239319,-1131.0,0.00016059,2]
[404569653,1770304239329,-204.0,0.00017272,2]
[404569655,1770304239339,-385.7339289,0.00018676,2]
[404569657,1770304239350,-632.94622104,0.00019062,2]
[404569659,1770304239361,-500.0,0.00019062,2]
[404569661,1770304239374,-500.0,0.00019062,2]
[404569663,1770304239388,-500.0,0.00019062,2]
[404569665,1770304239400,-277.31081849,0.00019062,2]
[404569667,1770304239410,-500.0,0.00019062,2]
[404569669,1770304239420,-500.0,0.00019062,2]
[404569671,1770304239430,-4.85559868,0.00019062,2]
[404569806,1770304240935,-495.14440132,0.00019062,2]
[404569808,1770304240943,-500.0,0.00019062,2]
[404569810,1770304240951,-500.0,0.00019062,2]
[404569812,1770304240959,-500.0,0.00019062,2]
[404569814,1770304240969,-500.0,0.00019062,2]
[404569816,1770304240978,-500.0,0.00019062,2]
[404569819,1770304240987,-250.0,0.00019062,2]
[404569821,1770304240996,-500.0,0.00019062,2]
[404569823,1770304241005,-500.0,0.00019062,2]
[404569826,1770304241013,-500.0,0.00019062,2]
[404569829,1770304241022,-500.0,0.00019062,2]
[404569830,1770304241031,-500.0,0.00019062,2]
[404569832,1770304241040,-500.0,0.00019062,2]
[404569834,1770304241049,-330.72867208,0.00019062,2]
[404569837,1770304241064,-500.0,0.00019062,2]
[404569839,1770304241074,-500.0,0.00019062,2]
[404569840,1770304241083,-8969.677974,0.00019064,2]
[404569842,1770304241092,-231.0,0.00019272,2]
[404569844,1770304241101,-3220.1022516,0.00019427,2]
[404569846,1770304241110,-258.0,0.00021272,2]
[404569848,1770304241120,-285.0,0.00023272,2]
[404569850,1770304241130,-312.0,0.00025272,2]
[404569852,1770304241139,-300.0,0.00026116,2]
[404569854,1770304241148,-339.0,0.00027272,2]
[404569856,1770304241158,-207.032049,0.00028943,2]
[404569858,1770304241167,-366.0,0.00029272,2]
[404569860,1770304241176,-827.45605196,0.00029388,2]
[404569862,1770304241185,-208.08058082,0.00029433,2]
[404569864,1770304241195,-827.45605196,0.00029685,2]
[404569866,1770304241204,-661.96484157,0.00029833,10]
[404569868,1770304241213,-379.47951494,0.0003,8]
[404569870,1770304241222,-2311.3671417,0.00030127,2]
[404569872,1770304241231,-352.62573173,0.00030136,2]
[404569874,1770304241241,-500.0,0.00030137,7]
[404569876,1770304241250,-159.6,0.00030137,10]
[404569878,1770304241259,-741.26793723,0.00030137,7]
[404569880,1770304241268,-10000.0,0.00030137,7]
[404569882,1770304241278,-10000.0,0.00030137,7]
[404569884,1770304241287,-10000.0,0.00030137,7]
[404569886,1770304241295,-10000.0,0.00030137,7]
[404569888,1770304241307,-10000.0,0.00030137,7]
[404569890,1770304241319,-10000.0,0.00030137,7]
[404569891,1770304241328,-6439.0,0.00030137,7]
[404569894,1770304241337,-340.5,0.000302,7]
[404569896,1770304241349,-3418.07072023,0.0003028,2]
[404569898,1770304241364,-176.4250532,0.00030357,10]
[404569901,1770304241378,-661.96484157,0.00030788,10]
[404569903,1770304241393,-741.26793723,0.00031,7]
[404569906,1770304241407,-393.0,0.00031272,2]
[404569908,1770304241418,-661.96484157,0.00031743,10]
[404569910,1770304241429,-500.0,0.00032438,2]
[404569912,1770304241443,-741.26793723,0.00032439,2]
[404569915,1770304241455,-1041.66666667,0.00032439,2]
[404569917,1770304241469,-160.0,0.00032439,2]
[404569920,1770304241482,-661.96484157,0.00032698,10]
[404569922,1770304241495,-201.148,0.00032714,33]
[404569924,1770304241509,-500.0,0.00032877,7]
[404569927,1770304241521,-500.0,0.00032877,7]
[404569929,1770304241536,-4057.06,0.00033,15]
[404569932,1770304241551,-562.96007809,0.000332,117]
[404569934,1770304241569,-562.96007805,0.000332,117]
[404569937,1770304241584,-420.0,0.00033272,120]
[404569939,1770304241596,-661.96484157,0.00033652,27]
[404569941,1770304241609,-2383.0,0.000339,14]
[404569944,1770304241621,-562.96007805,0.00034481,120]
[404569946,1770304241633,-661.96484157,0.00034607,30]
[404569948,1770304241645,-447.0,0.00035272,120]
[404569950,1770304241657,-661.96484157,0.00035562,30]
[404569953,1770304241671,-334.26526093,0.00036148,2]
[404569955,1770304241682,-996.696562,0.00036438,60]
[404569956,1770304241695,-1011.026111,0.00037041,60]
[404569957,1770304241704,-1684.015041,0.00037041,60]
[404569959,1770304241714,-1445.188774,0.00037041,60]
[404569961,1770304241726,-174.29,0.00037192,60]
[404569962,1770304241736,-2993.33,0.00037262,10]
[404569963,1770304241748,-474.0,0.00037272,120]
[404569965,1770304241761,-174.29,0.00037292,60]
[404569967,1770304241775,-710.64813226,0.00037297,2]
[404569969,1770304241786,-1799.172722,0.00037297,60]
[404569970,1770304241798,-453.03818432,0.00037307,2]
[404569971,1770304241815,-174.29,0.00037392,60]
[404569972,1770304241829,-174.29,0.00037492,60]
[404569973,1770304241842,-340.5,0.000375,7]
[404569974,1770304241854,-2806.95,0.00037539,10]
[404569975,1770304241864,-2311.3671417,0.00037539,3]
[404569976,1770304241874,-28531.2366093,0.00037549,2]
[404569978,1770304241885,-2327.932389,0.00037549,2]
[404569980,1770304241898,-176.250518,0.00037549,2]
[404569982,1770304241909,-174.33795831,0.00037592,60]
[404569984,1770304241921,-200.0,0.00037858,2]
[404569986,1770304241936,-1003.76578556,0.00037873,15]
[404569988,1770304241948,-350.59610207,0.00038003,2]
[404569989,1770304241958,-200.0,0.00038184,2]
[404569991,1770304241969,-354.04,0.00038356,120]
[404569993,1770304241981,-800.0,0.00038356,30]
[404569995,1770304241992,-200.0,0.0003851,2]
[404569997,1770304242004,-2000.0,0.00038596,120]
[404569998,1770304242015,-200.0,0.00038836,2]
[404569999,1770304242026,-183.79461461,0.00038884,2]
[404570000,1770304242036,-517.74433047,0.0003889,30]
[404570001,1770304242046,-800.0,0.00038904,30]
[404570002,1770304242059,-500.0,0.00038962,120]
[404570003,1770304242070,-500.0,0.00038962,120]
[404570004,1770304242080,-500.0,0.00038962,120]
[404570005,1770304242091,-500.0,0.00038962,120]
[404570006,1770304242104,-500.0,0.00038962,120]
[404570007,1770304242115,-500.0,0.00038962,120]
[404570008,1770304242127,-500.0,0.00038962,120]
[404570009,1770304242138,-648.72,0.00038962,120]
[404570010,1770304242149,-2311.3671417,0.00038963,3]
[404570011,1770304242162,-250.0,0.00038973,3]
[404570012,1770304242174,-500.0,0.00038973,3]
[404570013,1770304242186,-250.0,0.00038973,3]
[404570014,1770304242198,-250.0,0.00038973,3]
[404570015,1770304242210,-500.0,0.00038973,3]
[404570016,1770304242221,-500.0,0.00038973,3]
[404570017,1770304242233,-250.0,0.00038973,3]
[404570018,1770304242244,-250.0,0.00038973,3]
[404570019,1770304242255,-500.0,0.00038973,3]
[404570020,1770304242267,-250.0,0.00038973,3]
[404570021,1770304242278,-250.0,0.00038973,3]
[404570022,1770304242290,-250.0,0.00038973,3]
[404570023,1770304242301,-250.0,0.00038973,3]
[404570024,1770304242317,-500.0,0.00038973,3]
[404570025,1770304242329,-277.56568891,0.00038973,3]
[404570026,1770304242340,-250.0,0.00038973,3]
[404570027,1770304242352,-250.0,0.00038973,3]
[404570028,1770304242363,-250.0,0.00038973,3]
[404570029,1770304242374,-2000.0,0.00038973,3]
[404570030,1770304242385,-500.0,0.00038973,3]
[404570031,1770304242395,-250.0,0.00038973,3]
[404570032,1770304242406,-250.0,0.00038973,3]
[404570033,1770304242416,-250.0,0.00038973,3]
[404570034,1770304242427,-2000.0,0.00038973,3]
[404570035,1770304242438,-500.0,0.00038973,3]
[404570036,1770304242448,-250.0,0.00038973,3]
[404570037,1770304242459,-250.0,0.00038973,3]
[404570038,1770304242470,-250.0,0.00038973,3]
[404570039,1770304242481,-2000.0,0.00038973,3]
[404570040,1770304242491,-500.0,0.00038973,3]
[404570041,1770304242502,-250.0,0.00038973,3]
[404570042,1770304242513,-500.0,0.00038973,3]
[404570043,1770304242524,-250.0,0.00038973,3]
[404570044,1770304242535,-250.0,0.00038973,3]
[404570045,1770304242546,-2000.0,0.00038973,3]
[404570046,1770304242559,-500.0,0.00038973,3]
[404570047,1770304242570,-250.0,0.00038973,3]
[404570048,1770304242581,-500.0,0.00038973,3]
[404570049,1770304242591,-249.99999903,0.00038973,3]
[404570050,1770304242602,-250.0,0.00038973,3]
[404570051,1770304242612,-534.19566493,0.00038973,3]
[404570052,1770304242627,-1465.80433507,0.00038973,3]
[404570053,1770304242638,-500.0,0.00038973,3]
[404570054,1770304242650,-250.0,0.00038973,3]
[404570055,1770304242661,-209.40437684,0.00038973,3]
[404570056,1770304242672,-500.0,0.00038973,3]
[404570057,1770304242683,-250.0,0.00038973,3]
[404570058,1770304242694,-2000.0,0.00038973,3]
[404570059,1770304242705,-500.0,0.00038973,3]
[404570060,1770304242715,-250.0,0.00038973,3]
[404570061,1770304242725,-217.15233878,0.00038973,3]
[404570062,1770304242736,-500.0,0.00038973,3]
[404570063,1770304242747,-250.0,0.00038973,3]
[404570064,1770304242758,-2000.0,0.00038973,3]
[404570065,1770304242768,-250.0,0.00038973,3]
[404570066,1770304242777,-225.18697532,0.00038973,3]
[404570067,1770304242786,-500.0,0.00038973,3]
[404570068,1770304242796,-250.0,0.00038973,3]
[404570069,1770304242978,-2000.0,0.00038973,3]